bitfinex/quotes_ETHUSD_20241217
["timestamp","ask_amount","ask_price","bid_price","bid_amount"]
[1734436374994,5.15,3990.2,3988.8,2.89612752]
[1734436375290,5.63399511,3990.2,3988.9,0.7891]
[1734436376745,8.14014511,3990.2,3988.9,0.7891]
[1734436377247,5.63399511,3990.2,3988.9,0.7891]
[1734436377854,5.63399511,3990.2,3988.5,0.7891]
[1734436377855,0.7588,3990.1,3988.5,0.7891]
[1734436378054,2.50627,3990.0,3988.5,0.7891]
[1734436378259,5.15,3989.8,3988.5,0.7891]
[1734436380381,5.15,3989.8,3988.9,3.0]
[1734436380588,5.15,3989.8,3989.0,0.8076]
[1734436381362,5.15,3990.9,3989.4,3.8076]
[1734436381563,5.15,3990.9,3988.1,0.24983628]
[1734436381564,5.15,3990.9,3990.1,0.8076]
[1734436381866,0.515,3990.8,3990.1,0.8076]
[1734436382207,0.7971,3991.3,3990.1,0.8076]
[1734436382416,0.7971,3991.8,3990.1,0.8076]
[1734436382622,5.15,3991.7,3990.1,0.8076]
[1734436384203,2.50546,3991.3,3990.1,0.8076]
[1734436384403,5.400546,3991.2,3990.1,0.8076]
[1734436385223,0.8046,3992.0,3990.1,0.8076]
[1734436388123,5.15,3992.4,3990.6,0.789]
[1734436388622,5.15,3992.4,3991.4,2.89612752]
[1734436388778,5.15,3992.4,3991.6,0.789]
[1734436388977,0.8046,3993.0,3991.6,0.789]
[1734436388978,0.515,3992.3,3991.6,0.789]
[1734436389206,5.15,3992.9,3991.6,0.789]
[1734436389889,0.8046,3993.4,3991.6,0.789]
[1734436389890,5.15,3993.3,3991.6,0.789]
[1734436390223,5.27678234,3993.3,3991.6,0.789]
[1734436391089,5.15,3993.3,3992.9,2.89612752]
[1734436391290,0.8046,3994.1,3992.9,2.89612752]
[1734436391291,5.15,3994.0,3992.9,2.89612752]
[1734436391522,0.59546,3993.9,3992.5,0.789]
[1734436391819,0.59546,3993.9,3992.5,3.789]
[1734436392537,0.59546,3993.9,3993.1,0.789]
[1734436392680,5.15,3994.6,3993.1,0.789]
[1734436392883,7.65338,3994.6,3993.1,0.789]
[1734436393887,0.55,3994.5,3993.1,0.789]
[1734436394108,0.55,3994.3,3992.6,0.789]
[1734436394276,0.55,3994.1,3992.6,0.789]
[1734436394482,2.50402,3993.6,3992.6,0.789]
[1734436394726,0.55,3993.9,3992.6,0.789]
[1734436395429,0.8046,3994.0,3992.6,0.789]
[1734436397473,2.50396,3993.7,3992.6,0.789]
[1734436397676,0.305396,3993.6,3992.6,3.789]
[1734436397883,0.1248077,3994.2,3992.6,3.789]
[1734436399223,2.50369,3994.1,3992.6,3.789]
[1734436399793,2.50376,3994.0,3992.6,3.789]
[1734436400031,2.6284377,3994.2,3992.6,3.789]
[1734436400341,0.1248077,3994.2,3992.6,3.789]
[1734436400497,0.52748077,3994.1,3992.6,3.789]
[1734436402337,5.15,3994.0,3992.6,3.789]
[1734436402882,5.15,3994.0,3992.7,0.8102]
[1734436403604,2.50382,3993.9,3992.7,0.8102]
[1734436403803,5.15,3994.0,3992.7,0.8102]
[1734436404028,2.50408,3993.5,3992.7,0.8102]
[1734436405547,5.15,3993.4,3992.1,0.8098]
[1734436405691,5.7,3993.4,3992.1,0.8098]
[1734436405896,8.20417,3993.4,3992.1,0.8098]
[1734436406132,2.50419,3993.3,3992.1,0.8098]
[1734436406343,3.324679,3993.2,3992.1,0.8098]
[1734436406694,0.820419,3993.2,3992.1,0.8098]
[1734436407203,0.820419,3993.2,3992.2,0.8098]
[1734436408231,5.15,3993.4,3992.2,0.8098]
[1734436408392,5.15,3994.0,3992.2,0.8098]
[1734436408804,2.50395,3993.7,3992.2,0.8098]
[1734436409407,2.50382,3993.9,3992.2,0.8098]
[1734436409756,5.15,3994.0,3992.2,0.8098]
[1734436409910,0.58005356,3993.9,3992.2,0.8098]
[1734436410113,3.08392356,3993.9,3992.2,0.8098]
[1734436411464,5.15,3993.8,3992.2,0.8098]
[1734436414029,5.15,3993.8,3992.7,0.8098]
[1734436414553,0.58005356,3993.9,3992.7,0.8098]
[1734436414765,5.15,3994.7,3992.7,0.8098]
[1734436414966,2.50345,3994.5,3992.7,0.8098]
[1734436415127,2.50351,3994.4,3992.7,0.8098]
[1734436416159,5.15,3994.7,3993.0,2.89612752]
[1734436416330,7.65337,3994.7,3993.1,0.8098]
[1734436416526,3.344477,3994.6,3993.1,0.8098]
[1734436416729,0.841097,3994.6,3993.2,0.55]
[1734436416944,5.15,3995.3,3994.1,0.8098]
[1734436417167,2.50287,3995.4,3993.6,3.0]
[1734436417377,0.1233899,3994.9,3993.6,3.0]
[1734436418775,2.6265899,3994.9,3993.6,3.0]
[1734436418984,0.1233899,3994.9,3993.6,3.0]
[1734436419494,0.38603689,3994.9,3993.6,3.0]
[1734436420212,0.26264699,3994.9,3993.7,0.8098]
[1734436420391,5.15,3995.5,3993.7,0.8098]
[1734436420547,2.5032,3994.9,3993.7,0.8098]
[1734436420748,2.50326,3994.8,3993.7,0.8098]
[1734436420980,2.50332,3994.7,3993.7,0.8098]
[1734436421293,0.765332,3994.6,3993.7,0.8098]
[1734436421908,2.5035,3994.4,3993.7,0.8098]
[1734436422257,2.5035,3994.4,3993.7,0.32028222]
[1734436422258,5.15,3994.4,3993.7,0.32028222]
[1734436422494,2.50368,3994.2,3993.7,0.32028222]
[1734436423082,7.6535,3994.4,3993.7,0.32028222]
[1734436423404,0.8418832,3994.3,3993.7,0.32028222]
[1734436425905,3.3454532,3994.3,3993.7,0.32028222]
[1734436426409,7.65363,3994.2,3993.7,0.32028222]
[1734436427466,7.65363,3994.2,3993.1,0.7588]
[1734436427467,7.65396,3993.7,3993.1,0.7588]
[1734436427716,5.15,3993.7,3993.1,0.7588]
[1734436427870,0.61727723,3993.6,3993.1,0.7588]
[1734436429313,5.15,3993.7,3993.1,0.7588]
[1734436430626,0.85836721,3993.6,3993.1,0.7588]
[1734436431248,5.15,3993.7,3993.1,0.7588]
[1734436431604,2.14694483,3993.6,3993.1,0.7588]
[1734436431907,5.15,3993.7,3993.1,0.7588]
[1734436432143,3.16970937,3993.6,3993.1,0.7588]
[1734436432548,0.85877484,3993.5,3993.1,0.7588]
[1734436432714,1.02277227,3993.5,3993.1,0.7588]
[1734436433152,0.85877484,3993.4,3993.1,0.7588]
[1734436433348,1.02277227,3993.6,3993.1,0.7588]
[1734436433515,3.52896041,3993.5,3993.1,0.7588]
[1734436433838,0.8593553,3993.4,3993.1,0.7588]
[1734436434413,3.17265019,3993.4,3993.1,0.7588]
[1734436434625,2.14987792,3993.3,3993.1,0.7588]
[1734436434832,0.8593553,3993.2,3993.1,0.7588]
[1734436435445,1.24676502,3993.2,3993.1,0.7588]
[1734436435603,2.10612032,3993.2,3993.1,0.7588]
[1734436435797,3.3964972,3993.2,3993.1,0.7588]
[1734436435997,2.37372493,3993.2,3993.1,0.7588]
[1734436436834,3.41449782,3993.2,3993.1,0.7588]
[1734436437150,2.37372493,3993.2,3993.1,0.7588]
[1734436437304,3.41445652,3993.2,3993.1,0.7588]
[1734436437505,3.41618282,3993.2,3993.1,0.7588]
[1734436437823,3.41618282,3993.2,3990.8,1.03104554]
[1734436437824,5.15,3992.9,3990.8,1.03104554]
[1734436438002,1.04054771,3992.3,3990.9,2.34410511]
[1734436438202,1.04054771,3992.2,3991.3,2.34410511]
[1734436438434,1.04054771,3992.4,3991.3,2.34410511]
[1734436438817,1.04054771,3992.4,3991.7,2.34410511]
[1734436439023,2.72649542,3992.8,3990.7,1.03104554]
[1734436439024,1.04054771,3993.0,3992.1,2.34410511]
[1734436439245,7.75136927,3993.6,3992.6,2.34410511]
[1734436439246,1.04054771,3993.3,3992.6,2.34410511]
[1734436439448,1.04054771,3993.6,3993.2,2.34410511]
[1734436439606,1.04054771,3993.8,3993.2,2.34410511]
[1734436439803,2.60136927,3994.3,3993.2,2.34410511]
[1734436439804,1.04054771,3993.9,3993.2,2.34410511]
[1734436440624,1.04054771,3993.9,3993.3,0.8177]
[1734436441212,0.86053997,3993.8,3993.3,0.8177]
[1734436441411,1.04054771,3994.0,3993.3,0.8177]
[1734436441961,1.04054771,3993.9,3993.3,0.8177]
[1734436442119,1.90093627,3993.9,3993.3,0.8177]
[1734436442321,0.86038856,3993.8,3993.3,0.8177]
[1734436442531,1.04054771,3993.9,3993.3,0.8177]
[1734436443085,0.86034165,3993.8,3993.3,0.8177]
[1734436443235,1.04054771,3994.0,3993.3,0.8177]
[1734436443551,1.04054771,3994.1,3993.3,0.8177]
[1734436443909,1.29017917,3994.0,3993.3,0.8177]
[1734436444250,0.86005728,3993.9,3993.3,0.8177]
[1734436444452,1.04054771,3994.1,3993.3,0.8177]
[1734436444634,1.29004935,3994.0,3993.3,3.8177]
[1734436444955,1.04054771,3994.1,3993.3,3.8177]
[1734436444956,0.86006174,3993.9,3993.3,3.8177]
[1734436445154,1.04054771,3994.1,3993.3,3.8177]
[1734436445339,1.29007854,3994.0,3993.3,3.8177]
[1734436445510,1.04054771,3994.1,3993.3,3.8177]
[1734436445855,1.2900196,3994.0,3993.3,3.8177]
[1734436446151,1.04054771,3994.1,3993.3,3.8177]
[1734436446307,2.14879003,3994.0,3993.3,3.8177]
[1734436446509,0.85951601,3993.9,3993.3,3.0]
[1734436446728,1.04054771,3994.1,3993.4,0.8177]
[1734436447025,1.28922518,3994.0,3993.4,0.8177]
[1734436447209,1.50879418,3994.1,3993.4,0.8177]
[1734436447407,0.85954865,3994.0,3992.5,0.8177]
[1734436447607,1.04054771,3994.5,3993.6,7.68821022]
[1734436447908,1.04054771,3995.0,3994.1,3.0]
[1734436448125,1.56082156,3995.1,3994.2,0.8177]
[1734436448126,3.18921243,3994.9,3994.2,0.8177]
[1734436448306,1.56082156,3995.1,3994.2,0.8177]
[1734436448307,0.85946589,3994.8,3994.2,0.8177]
[1734436448511,1.04054771,3995.0,3994.2,0.8177]
[1734436448908,2.32930074,3994.9,3994.2,0.8177]
[1734436449104,0.85918361,3994.8,3994.2,0.8177]
[1734436449308,3.18833072,3994.7,3994.2,0.8177]
[1734436449615,0.55,3994.2,3992.8,0.8177]
[1734436449814,0.55,3993.8,3992.8,0.8177]
[1734436450031,3.18517181,3993.7,3992.8,0.8177]
[1734436450253,0.85864254,3993.6,3992.8,0.8177]
[1734436450950,1.03856546,3993.3,3992.8,0.8177]
[1734436451252,1.03856546,3993.1,3992.8,0.8177]
[1734436451424,1.03856546,3993.1,3992.0,0.8177]
[1734436451613,1.2876524,3993.0,3992.0,0.8177]
[1734436451830,1.28767901,3992.9,3992.0,0.8177]
[1734436452012,1.03856546,3993.0,3992.0,3.8177]
[1734436452215,1.03856546,3993.1,3992.0,3.8177]
[1734436452414,1.03856546,3992.9,3992.0,0.8177]
[1734436452712,1.28754358,3993.0,3992.0,0.8177]
[1734436452713,1.03856546,3992.7,3992.0,0.8177]
[1734436453051,1.28754358,3992.6,3992.0,0.8177]
[1734436453250,2.32610904,3992.6,3992.0,0.8177]
[1734436453457,1.03856546,3992.7,3992.0,0.8177]
[1734436453637,1.28738134,3992.6,3992.0,0.8177]
[1734436453838,1.29850416,3992.7,3992.0,0.8177]
[1734436454258,1.28739481,3992.6,3992.0,3.8177]
[1734436454414,1.29850416,3992.7,3992.0,3.8177]
[1734436454613,1.28717103,3992.6,3992.0,3.8177]
[1734436454843,1.29850416,3992.7,3992.0,3.8177]
[1734436455045,1.28715745,3992.6,3992.0,3.8177]
[1734436455249,1.29850416,3992.7,3992.0,3.8177]
[1734436455651,1.28693644,3992.6,3992.0,3.8177]
[1734436455958,1.29850416,3992.7,3992.0,3.8177]
[1734436456257,1.28690848,3992.6,3992.0,3.8177]
[1734436456439,1.29850416,3992.7,3992.0,3.8177]
[1734436456646,0.2599387,3992.7,3992.0,3.8177]
[1734436457755,1.03856546,3992.9,3992.0,3.8177]
[1734436458131,6.18856546,3993.0,3992.0,3.8177]
[1734436458333,6.18856546,3993.0,3992.1,0.7749]
[1734436458530,5.15,3993.0,3992.1,0.7749]
[1734436458735,6.18856546,3993.0,3992.1,0.7749]
[1734436458951,2.13885433,3992.9,3992.1,0.7749]
[1734436459113,7.04099803,3992.9,3992.1,0.7749]
[1734436459319,3.66050583,3992.8,3991.8,0.7749]
[1734436459622,2.32460583,3992.7,3991.8,0.7749]
[1734436459975,2.32460583,3992.6,3991.8,0.7749]
[1734436460118,0.52213274,3992.5,3991.8,0.7749]
[1734436460638,1.03856546,3992.7,3991.8,0.7749]
[1734436460954,2.32399064,3992.6,3991.8,0.7749]
[1734436461162,1.03856546,3992.7,3991.8,0.7749]
[1734436461317,1.28545542,3992.6,3991.8,0.7749]
[1734436461518,0.36599209,3992.5,3991.8,0.7749]
[1734436462158,0.55,3992.5,3991.8,0.7749]
[1734436462562,2.8732584,3992.5,3991.8,0.7749]
[1734436462869,1.28469294,3992.4,3991.8,0.7749]
[1734436463163,1.58856546,3992.5,3991.8,0.7749]
[1734436463383,0.55,3992.5,3991.8,0.7749]
[1734436463664,5.7,3992.3,3991.2,0.7749]
[1734436466237,5.15,3992.3,3991.2,0.7749]
[1734436466918,5.15,3992.3,3991.5,0.7749]
[1734436467161,5.15,3992.3,3990.5,3.0]
[1734436467162,0.5,3992.6,3991.9,0.7749]
[1734436468423,0.5,3992.6,3991.9,3.7749]
[1734436469759,0.5,3992.6,3992.0,0.7749]
[1734436471630,0.55,3992.5,3992.0,0.7749]
[1734436471857,0.18359,3992.4,3992.0,0.7749]
[1734436472925,0.5,3992.6,3992.0,0.7749]
[1734436479192,0.5,3992.6,3992.2,2.34410511]
[1734436479482,0.5,3992.6,3992.4,0.7749]
[1734436482664,0.39927764,3992.6,3992.4,0.7749]
[1734436482973,0.39927764,3992.6,3992.5,8.331673]
[1734436483326,0.39927764,3992.6,3992.5,3.7749]
[1734436483463,0.39927764,3992.6,3992.5,0.7749]
[1734436484195,0.39927764,3992.6,3992.5,11.100656]
[1734436484511,0.39927764,3992.6,3992.5,20.47351569]
[1734436484691,0.39927764,3992.6,3992.5,33.64355469]
[1734436484865,0.39927764,3992.6,3992.5,38.69752469]
[1734436485071,0.39927764,3992.6,3992.5,39.01905369]
[1734436485293,0.39927764,3992.6,3992.5,34.62173969]
[1734436485495,0.39927764,3992.6,3992.5,32.81013569]
[1734436485667,0.39927764,3992.6,3992.5,31.90795469]
[1734436485868,0.39927764,3992.6,3992.5,29.93965669]
[1734436486062,0.39927764,3992.6,3992.5,27.31416125]
[1734436486268,0.39927764,3992.6,3992.5,19.870577]
[1734436486578,0.39927764,3992.6,3992.5,6.616535]
[1734436488077,0.39927764,3992.6,3992.5,6.91600925]
[1734436490311,0.39927764,3992.6,3992.5,1.07437425]
[1734436490535,0.39927764,3992.6,3992.5,14.19844225]
[1734436490665,0.39927764,3992.6,3992.5,15.913909]
[1734436491127,0.39927764,3992.6,3992.5,15.488327]
[1734436491478,0.39927764,3992.6,3992.5,12.841219]
[1734436491727,0.39927764,3992.6,3992.5,7.496608]
[1734436492020,0.39927764,3992.6,3992.5,0.7749]
[1734436493074,0.39927764,3992.6,3992.5,5.986809]
[1734436493272,0.39927764,3992.6,3992.5,10.611753]
[1734436493523,0.39927764,3992.6,3992.5,9.482966]
[1734436501607,0.39927764,3992.6,3992.5,1.07437425]
[1734436501803,0.39927764,3992.6,3992.5,4.36484069]
[1734436502047,0.8052,3994.6,3993.7,2.34410511]
[1734436503650,0.8052,3994.6,3994.1,2.34410511]
[1734436504011,0.8152,3995.2,3994.2,0.7852]
[1734436504348,1.41172,3995.2,3994.2,3.7852]
[1734436505884,0.8152,3995.1,3993.8,3.7852]
[1734436506092,0.8152,3995.1,3993.4,0.7852]
[1734436506093,0.8152,3994.9,3993.4,0.7852]
[1734436506365,0.8152,3994.6,3993.1,3.12930511]
[1734436506724,0.8152,3994.6,3993.2,0.07815987]
[1734436506923,0.8152,3994.4,3993.3,0.07815987]
[1734436507160,0.8152,3994.4,3993.4,0.07816008]
[1734436507363,0.8152,3994.2,3993.5,0.07816008]
[1734436507592,0.8152,3993.7,3992.3,2.34410511]
[1734436507721,0.8152,3993.5,3992.0,0.7852]
[1734436507927,0.8152,3993.5,3992.3,2.34410511]
[1734436508840,0.8152,3993.5,3991.1,0.71384558]
[1734436508841,0.8152,3993.5,3991.9,2.34410511]
[1734436509358,0.8152,3993.3,3991.9,2.34410511]
[1734436509564,0.13652,3993.2,3991.9,2.34410511]
[1734436510479,0.8152,3993.1,3991.5,2.34410511]
[1734436510835,0.8152,3992.9,3991.5,2.34410511]
[1734436513331,0.8152,3992.9,3992.3,2.34410511]
[1734436514774,0.8152,3992.9,3991.9,5.34410511]
[1734436516746,0.8152,3992.9,3991.9,3.0]
[1734436516954,5.15,3993.7,3991.9,3.0]
[1734436516955,0.8069,3993.7,3992.7,2.34410511]
[1734436517276,0.8069,3993.7,3991.9,3.0]
[1734436517277,0.99144655,3993.7,3992.3,2.34410511]
[1734436517464,0.8069,3993.7,3992.3,2.34410511]
[1734436518879,5.7,3993.6,3991.9,2.34410511]
[1734436519044,0.8069,3993.4,3991.9,2.34410511]
[1734436521399,0.8069,3993.2,3991.5,2.34410511]
[1734436521946,0.8069,3993.0,3991.5,2.34410511]
[1734436522296,0.8069,3992.8,3991.5,2.34410511]
[1734436523320,0.8069,3992.7,3991.1,5.34410511]
[1734436524270,0.8069,3992.6,3991.1,5.34410511]
[1734436526815,0.8069,3992.6,3991.5,2.34410511]
[1734436529699,0.8069,3992.6,3991.9,2.34410511]
[1734436538457,0.8069,3992.6,3992.0,3.0]
[1734436540023,0.7608,3993.5,3992.0,3.0]
[1734436540242,0.69493655,3993.4,3992.0,3.0]
[1734436540480,0.7608,3993.3,3992.0,3.0]
[1734436540975,0.7608,3993.3,3992.3,2.34410511]
[1734436543868,0.7608,3993.3,3992.7,2.34410511]
[1734436545159,2.08109542,3994.8,3992.7,2.34410511]
[1734436545160,0.7608,3994.2,3993.1,2.34410511]
[1734436545360,0.7608,3994.2,3993.8,2.34410511]
[1734436545663,0.8107,3994.5,3993.8,2.34410511]
[1734436545831,0.8107,3994.5,3994.3,2.34410511]
[1734436546433,0.8107,3994.5,3993.3,3.0]
[1734436546434,0.8107,3994.5,3993.9,2.34410511]
[1734436549524,0.8107,3994.8,3994.0,3.0]
[1734436550783,0.8107,3994.8,3994.3,2.34410511]
[1734436551988,0.8107,3994.8,3994.0,3.0]
[1734436552162,0.8107,3994.8,3993.9,2.34410511]
[1734436554891,0.8107,3994.8,3993.9,2.3377324]
[1734436560461,0.8107,3994.8,3994.3,2.34410511]
[1734436561750,0.8107,3994.8,3993.9,2.34410511]
[1734436565770,0.8107,3994.8,3994.3,2.34410511]
[1734436568057,0.8107,3994.8,3994.1,3.0]
[1734436568058,0.8123,3995.9,3994.7,2.34410511]
[1734436568398,0.8123,3995.9,3994.1,3.0]
[1734436568399,0.8123,3995.9,3995.1,2.34410511]
[1734436583554,0.7586,3996.6,3995.5,2.34410511]
[1734436583778,0.7586,3996.6,3995.9,2.34410511]
[1734436584075,0.7586,3996.6,3995.5,2.34410511]
[1734436584477,0.7586,3996.6,3994.5,0.29947425]
[1734436584478,0.7586,3996.4,3995.1,2.34410511]
[1734436586076,0.7586,3996.4,3995.5,1.08096113]
[1734436586792,3.54069546,3996.6,3995.2,1.08096113]
[1734436586793,0.7586,3996.2,3995.2,1.08096113]
[1734436587000,0.7586,3996.0,3995.2,1.08096113]
[1734436587144,0.7586,3995.8,3995.2,1.08096113]
[1734436592096,0.787,3995.6,3994.8,1.08096113]
[1734436592293,0.85840214,3995.5,3994.8,1.08096113]
[1734436592452,1.82556546,3995.6,3994.8,1.08096113]
[1734436592654,0.85836554,3995.5,3994.8,1.08096113]
[1734436592874,0.2683931,3995.4,3994.8,1.08096113]
[1734436593255,0.2683931,3995.4,3995.1,1.08096113]
[1734436597479,1.82556546,3995.6,3995.1,1.08096113]
[1734436597795,1.82556546,3996.2,3995.5,1.08096113]
[1734436598092,1.82556546,3996.2,3994.9,3.8222]
[1734436598093,0.787,3996.5,3996.1,1.08096113]
[1734436598294,0.85871812,3996.4,3996.1,1.08096113]
[1734436598711,1.6406387,3996.5,3996.1,1.08096113]
[1734436599000,0.85865762,3996.4,3996.1,1.08096113]
[1734436599205,1.6406387,3996.5,3996.1,1.08096113]
[1734436599796,0.787,3996.5,3996.1,1.08096113]
[1734436600295,0.787,3996.5,3995.7,2.34135522]
[1734436604388,1.03856546,3996.7,3995.8,0.777]
[1734436604589,2.08109542,3997.1,3995.8,3.777]
[1734436604590,0.85873467,3996.6,3995.8,3.777]
[1734436604910,2.34732156,3997.0,3995.8,3.777]
[1734436604911,1.03856546,3996.9,3995.8,3.777]
[1734436605102,2.48552847,3996.8,3995.8,0.777]
[1734436605275,1.82506546,3996.6,3995.1,2.34135522]
[1734436605464,3.18550523,3996.5,3995.1,5.34135522]
[1734436605661,3.18550523,3996.4,3995.1,5.34135522]
[1734436605861,2.34732156,3996.6,3995.1,5.34135522]
[1734436605862,1.03856546,3996.5,3995.1,5.34135522]
[1734436606220,1.03856546,3996.5,3995.5,2.34135522]
[1734436606526,1.26320057,3996.6,3995.5,2.34135522]
[1734436606527,0.7865,3996.6,3995.6,3.7906]
[1734436607523,1.37715416,3996.8,3995.9,2.34135522]
[1734436607524,1.03856546,3996.8,3995.9,2.34135522]
[1734436607683,1.79536546,3997.0,3996.0,0.7906]
[1734436607879,2.14637665,3996.9,3996.0,3.7906]
[1734436608122,0.85855066,3996.8,3996.0,3.7906]
[1734436608293,1.79536546,3997.0,3996.0,3.7906]
[1734436608494,2.14648795,3996.9,3996.3,2.34135522]
[1734436608707,1.79536546,3997.0,3996.3,2.34135522]
[1734436608708,0.7568,3997.0,3996.3,2.34135522]
[1734436609286,1.03856546,3997.3,3996.4,3.7906]
[1734436609518,0.85864742,3997.2,3996.4,3.7906]
[1734436609733,1.79536546,3997.4,3996.4,3.7906]
[1734436609930,0.85854682,3997.3,3996.4,3.7906]
[1734436610328,1.03856546,3997.4,3997.1,2.34135522]
[1734436610621,1.79536546,3998.1,3997.2,3.7906]
[1734436610826,2.14603401,3998.0,3997.2,3.7906]
[1734436611011,0.85842256,3997.9,3997.2,3.7906]
[1734436611214,2.64598416,3998.1,3997.2,3.7906]
[1734436611215,0.85840074,3997.8,3997.2,3.7906]
[1734436611382,0.7568,3997.8,3996.4,3.7906]
[1734436611585,3.1838287,3997.7,3996.4,3.7906]
[1734436611841,3.1838287,3997.7,3995.6,1.03104554]
[1734436611842,1.03856546,3997.5,3996.0,3.7906]
[1734436612135,1.03856546,3997.2,3996.0,0.7906]
[1734436612485,5.58415648,3997.1,3995.9,2.34135522]
[1734436612716,5.6854964,3997.0,3995.9,2.34135522]
[1734436612924,3.18350281,3996.9,3995.9,2.34135522]
[1734436613226,0.85809992,3996.8,3995.9,2.34135522]
[1734436614086,0.85809992,3996.8,3995.7,0.7906]
[1734436615086,0.7568,3996.7,3995.6,3.0]
[1734436615299,0.7568,3996.7,3995.5,5.34135522]
[1734436620300,0.7568,3996.7,3995.4,0.7906]
[1734436620629,1.03856546,3996.5,3995.4,0.7906]
[1734436620803,0.85749258,3996.5,3995.4,0.7906]
[1734436621002,0.25956539,3996.6,3995.4,0.7906]
[1734436621309,0.25956539,3996.6,3995.5,3.0]
[1734436621529,0.7568,3996.7,3995.8,2.34135522]
[1734436623050,0.7568,3996.7,3995.9,0.7678]
[1734436623216,0.7568,3996.7,3995.9,3.7678]
[1734436626807,0.7568,3996.7,3995.9,3.0]
[1734436627008,0.7568,3996.7,3995.8,2.34135522]
[1734436627213,0.93633655,3996.7,3995.8,2.34135522]
[1734436627934,0.7568,3996.7,3995.8,2.34135522]
[1734436628135,0.7568,3996.7,3996.1,1.08059015]
[1734436631452,0.7568,3996.7,3995.4,0.7678]
[1734436631612,0.7568,3996.7,3995.7,1.08059015]
[1734436633360,0.7626,3996.6,3995.7,1.08059015]
[1734436633516,0.7626,3996.4,3995.7,1.08059015]
[1734436637123,0.85742924,3996.3,3995.7,1.08059015]
[1734436637450,0.7626,3996.4,3995.7,1.08059015]
[1734436637654,0.8574968,3996.3,3995.7,1.08059015]
[1734436637851,0.7626,3996.4,3995.7,1.08059015]
[1734436638051,1.1477497,3996.3,3995.7,1.08059015]
[1734436638267,0.29025722,3996.3,3995.7,1.08059015]
[1734436638851,0.7626,3996.4,3996.0,1.08059015]
[1734436639214,0.7626,3996.4,3995.7,0.7911]
[1734436639215,0.7597,3996.8,3996.3,1.08059015]
[1734436639420,0.85788177,3996.7,3996.3,1.08059015]
[1734436640134,0.85788177,3996.7,3996.0,1.08059015]
[1734436640338,1.79826546,3996.8,3996.0,1.08059015]
[1734436640522,2.14512713,3996.7,3996.0,1.08059015]
[1734436641063,0.85805078,3996.7,3996.0,1.08059015]
[1734436641249,1.79826546,3996.8,3996.0,1.08059015]
[1734436641445,1.79826546,3996.8,3995.7,0.7911]
[1734436641446,0.7597,3996.8,3996.3,1.08059015]
[1734436641754,0.85825186,3996.7,3996.3,1.08059015]
[1734436641957,1.12390359,3996.7,3996.3,1.08059015]
[1734436642257,1.12390359,3996.7,3995.7,1.08059015]
[1734436642258,0.7597,3996.5,3995.7,1.08059015]
[1734436642425,1.03856546,3996.4,3995.7,1.08059015]
[1734436642625,3.18446629,3996.4,3995.7,1.08059015]
[1734436642845,2.14590083,3996.3,3995.7,1.08059015]
[1734436643128,1.03856546,3996.4,3995.7,1.08059015]
[1734436643321,0.3359087,3996.3,3995.7,1.08059015]
[1734436643656,2.2328225,3996.3,3995.7,1.08059015]
[1734436643874,3.18443631,3996.2,3995.7,1.08059015]
[1734436644239,3.18443631,3996.2,3995.3,0.7911]
[1734436644240,0.7597,3996.1,3995.4,1.08059015]
[1734436644441,0.7597,3995.9,3994.7,3.7911]
[1734436644641,0.39447747,3995.8,3994.9,1.08059015]
[1734436644846,0.85846239,3995.7,3994.9,1.08059015]
[1734436645249,1.03856546,3995.8,3995.2,1.08059015]
[1734436645454,1.79826546,3995.9,3995.2,1.08059015]
[1734436645703,1.28748063,3995.8,3995.2,1.08059015]
[1734436645918,2.51397393,3995.9,3995.2,1.08059015]
[1734436646048,2.32603475,3995.8,3995.2,1.08059015]
[1734436646398,2.32603475,3995.8,3994.9,1.08059015]
[1734436646399,2.32603475,3995.7,3994.9,1.08059015]
[1734436646597,1.03856546,3995.8,3994.9,1.08059015]
[1734436646945,1.28711988,3995.7,3994.9,1.08059015]
[1734436647148,1.28710724,3995.6,3994.9,1.08059015]
[1734436647391,1.28703965,3995.5,3994.9,1.08059015]
[1734436647703,0.7597,3995.4,3994.9,1.08059015]
[1734436649698,0.7597,3995.4,3994.6,1.08059015]
[1734436650202,0.7597,3995.4,3994.1,0.7911]
[1734436650344,0.7597,3995.2,3994.1,0.7911]
[1734436650545,0.7597,3995.0,3993.5,0.7911]
[1734436650751,0.7597,3994.8,3993.6,1.08059015]
[1734436650998,3.08393363,3994.8,3993.6,1.08059015]
[1734436651178,1.79826546,3994.8,3993.6,1.08059015]
[1734436651377,1.3459207,3994.8,3993.6,1.08059015]
[1734436651745,0.7597,3994.8,3993.9,1.08059015]
[1734436652082,0.7597,3994.8,3993.5,3.7911]
[1734436652257,0.7597,3994.8,3993.5,0.7911]
[1734436653901,0.7597,3994.8,3993.5,3.7911]
[1734436657994,2.50325,3994.8,3993.5,3.7911]
[1734436658203,0.7597,3994.6,3993.1,3.7911]
[1734436658362,0.7597,3994.5,3993.1,3.7911]
[1734436659691,2.5035,3994.5,3993.1,3.7911]
[1734436660023,0.7597,3994.4,3993.1,3.7911]
[1734436660613,0.7597,3994.3,3993.1,3.7911]
[1734436663189,0.7597,3994.3,3993.1,0.7911]
[1734436663526,0.7597,3994.3,3992.8,0.7911]
[1734436663527,0.7597,3994.2,3992.8,0.7911]
[1734436663731,0.55,3994.3,3992.8,0.7911]
[1734436663732,0.7597,3994.0,3992.8,0.7911]
[1734436670241,0.7619,3993.8,3992.5,0.7617]
[1734436671937,0.7619,3993.8,3992.5,3.7617]
[1734436673049,0.7619,3993.8,3992.5,0.7617]
[1734436673228,3.26578,3993.8,3992.5,0.7617]
[1734436673407,0.381578,3993.7,3992.5,0.7617]
[1734436674144,0.7619,3993.8,3992.5,0.7617]
[1734436675269,0.7619,3993.8,3992.6,3.0]
[1734436675812,5.9119,3993.8,3992.6,3.0]
[1734436676007,5.9119,3993.8,3992.7,0.7862]
[1734436676212,5.15,3993.8,3992.7,0.7862]
[1734436677144,5.15,3993.8,3993.0,3.0]